bitfinex/quotes_ETHUSD_20241013
["timestamp","ask_amount","ask_price","bid_price","bid_amount"]
[1728842552012,0.7946,2449.5,2449.3,4.08265]
[1728842552812,0.07104784,2449.6,2449.5,4.08246]
[1728842554714,0.07104784,2449.6,2449.5,7.59509376]
[1728842554918,0.07104784,2449.6,2449.5,8.97769376]
[1728842555079,0.7946,2450.1,2450.0,4.08163]
[1728842556116,0.07102476,2450.3,2450.2,4.08129]
[1728842559691,0.4262494,2450.6,2450.4,4.08089]
[1728842560083,0.49726383,2450.6,2450.4,4.08089]
[1728842561285,0.07101443,2450.6,2450.5,4.08079]
[1728842561895,0.07101443,2450.6,2450.4,4.08089]
[1728842562230,0.07101443,2450.6,2450.4,8.16177]
[1728842562520,0.07101443,2450.6,2450.5,4.08079]
[1728842565762,0.07101443,2450.6,2450.2,4.08117]
[1728842566045,0.7855,2450.5,2450.4,4.08096]
[1728842566405,0.7855,2450.5,2450.2,4.08113]
[1728842566939,0.7855,2450.5,2450.3,4.08108]
[1728842568207,0.07101443,2450.6,2450.5,4.08079]
[1728842568626,0.42621431,2451.1,2450.6,4.08052]
[1728842568946,0.49721942,2451.1,2450.6,4.08052]
[1728842569635,0.95615183,2451.1,2450.6,4.08052]
[1728842570023,0.7855,2451.0,2450.6,4.08052]
[1728842572813,4.86558,2451.0,2450.5,4.08079]
[1728842574656,4.86581,2450.8,2450.3,4.08102]
[1728842574819,4.86606,2450.7,2450.2,4.08128]
[1728842575314,0.7855,2450.7,2450.2,4.08128]
[1728842575519,4.08063,2450.6,2450.1,4.08133]
[1728842575922,4.08063,2450.6,2450.2,4.08129]
[1728842576853,0.7855,2450.7,2450.2,4.08129]
[1728842577080,0.7855,2450.7,2450.0,0.7557]
[1728842577081,0.7855,2450.7,2450.4,4.08086]
[1728842577253,0.7855,2450.7,2450.6,4.08063]
[1728842578428,0.7855,2450.7,2450.5,4.08077]
[1728842580522,0.7576,2450.9,2450.6,4.08063]
[1728842580963,0.7576,2450.9,2450.6,8.16118]
[1728842581127,0.7576,2450.9,2450.7,4.08043]
[1728842582659,0.7576,2450.9,2450.5,4.08076]
[1728842583020,0.7576,2450.9,2450.5,8.16148]
[1728842584435,0.7576,2450.9,2450.6,4.08062]
[1728842588970,0.7576,2450.9,2450.7,4.08045]
[1728842589139,0.07100266,2450.9,2450.7,4.08045]
[1728842591674,0.07100266,2450.9,2450.7,8.16083]
[1728842592644,0.07100266,2450.9,2450.8,4.0803]
[1728842595879,0.07100266,2450.9,2450.4,0.8298]
[1728842596178,0.07100266,2450.9,2450.7,4.08034]
[1728842597687,0.07100266,2450.9,2450.8,4.0803]
[1728842601785,0.07100266,2450.9,2450.7,4.08045]
[1728842602086,0.07100266,2450.9,2450.7,8.16084]
[1728842603095,0.07100266,2450.9,2450.7,8.16078]
[1728842604856,0.07100266,2450.9,2450.7,8.16076]
[1728842609881,0.07100266,2450.9,2450.7,8.16072]
[1728842610090,0.07100266,2450.9,2450.7,4.08035]
[1728842610398,0.07100266,2450.9,2450.8,4.0803]
[1728842611960,0.07100266,2450.9,2450.8,6.40909437]
[1728842612264,8.28108302,2451.3,2451.1,4.0798]
[1728842612475,0.84108302,2451.3,2451.1,9.67319437]
[1728842612989,0.84108302,2451.3,2451.1,5.59339437]
[1728842613191,0.84108302,2451.3,2451.2,4.07963]
[1728842613874,1.70617668,2451.4,2451.2,4.07963]
[1728842616107,1.70617668,2451.4,2451.2,5.59332437]
[1728842616108,0.86509366,2451.4,2451.2,5.59332437]
[1728842619170,0.86509366,2451.4,2451.2,4.07963]
[1728842619970,5.78551668,2451.4,2450.9,4.0801]
[1728842620603,4.87364,2451.3,2450.8,5.59389437]
[1728842620774,4.86125,2451.2,2450.8,4.0802]
[1728842620973,0.7816,2450.9,2450.5,4.08079]
[1728842621279,0.7816,2450.9,2450.5,5.59448437]
[1728842621280,4.86173,2450.9,2450.5,5.59448437]
[1728842623621,0.7816,2450.9,2450.5,5.59448437]
[1728842623830,0.7816,2450.9,2450.5,4.08079]
[1728842625098,1.62268302,2450.9,2450.5,4.08079]
[1728842626325,0.7816,2450.9,2450.5,4.08079]
[1728842626488,4.86174,2450.9,2450.5,4.08079]
[1728842626690,5.70282302,2450.9,2450.5,4.08079]
[1728842628100,4.86174,2450.9,2450.5,4.08079]
[1728842628299,5.70282302,2450.9,2450.5,4.08079]
[1728842629394,4.86174,2450.9,2450.5,4.08079]
[1728842629594,5.70282302,2450.9,2450.5,4.08079]
[1728842630022,4.86174,2450.9,2450.5,4.08079]
[1728842630542,5.70282302,2450.9,2450.5,4.08079]
[1728842630840,4.86174,2450.9,2450.5,4.08079]
[1728842631202,5.70282302,2450.9,2450.5,4.08079]
[1728842631401,1.62268302,2450.9,2450.5,4.08079]
[1728842631603,0.7816,2450.9,2450.5,4.08079]
[1728842632043,1.62268302,2450.9,2450.5,4.08079]
[1728842632542,0.7816,2450.9,2450.5,4.08079]
[1728842632840,0.07101043,2450.8,2450.5,4.08079]
[1728842633404,0.07101043,2450.8,2450.6,8.16124]
[1728842633617,0.07101043,2450.8,2450.6,4.08062]
[1728842638218,0.07101043,2450.8,2450.4,4.08087]
[1728842638419,0.8323,2450.7,2450.4,4.08087]
[1728842640515,0.8323,2450.7,2450.4,8.16176]
[1728842640932,0.8323,2450.7,2450.4,4.08087]
[1728842641238,0.8323,2450.7,2450.4,8.16175]
[1728842642363,0.8323,2450.7,2450.4,4.08087]
[1728842642517,0.8323,2450.7,2450.4,8.16175]
[1728842643523,0.8323,2450.7,2450.5,4.08076]
[1728842643722,0.07101043,2450.8,2450.5,4.08076]
[1728842643985,0.07101043,2450.8,2450.6,4.08058]
[1728842645968,0.07101043,2450.8,2450.6,5.59435468]
[1728842646342,0.07101043,2450.8,2450.6,4.08058]
[1728842647633,0.07101043,2450.8,2450.5,4.08076]
[1728842647958,0.07101043,2450.8,2450.5,8.16145]
[1728842648140,0.07101043,2450.8,2450.5,4.08069]
[1728842648949,0.07101043,2450.8,2450.4,6.42272468]
[1728842649277,0.07101043,2450.8,2450.5,4.08076]
[1728842649677,0.8323,2450.7,2450.5,4.08076]
[1728842651362,0.8323,2450.7,2450.4,4.08095]
[1728842651684,0.8323,2450.6,2450.0,5.59531468]
[1728842651844,4.91301,2450.6,2450.1,5.59514468]
[1728842652040,0.62524381,2450.5,2450.1,5.59514468]
[1728842652662,4.70604381,2450.5,2450.1,1.51377468]
[1728842652997,4.9135,2450.3,2449.9,1.51377468]
[1728842653293,4.9135,2450.3,2449.8,4.08187]
[1728842653577,4.9135,2450.3,2449.8,9.67751468]
[1728842653796,6.11805272,2450.3,2449.8,9.67751468]
[1728842653951,6.11805272,2450.3,2449.8,5.59564468]
[1728842654285,6.11805272,2450.3,2449.7,0.30591955]
[1728842654286,0.8323,2450.0,2449.7,0.30591955]
[1728842654654,0.8323,2450.0,2449.6,5.59593468]
[1728842654981,0.8323,2450.0,2449.6,9.67813468]
[1728842655197,0.8323,2450.0,2449.6,5.59593468]
[1728842655480,5.405324,2450.0,2449.5,5.59618468]
[1728842656283,5.405324,2450.0,2449.6,5.59606468]
[1728842656652,1.323684,2450.0,2449.6,5.59606468]
[1728842656879,1.323684,2450.0,2449.8,5.59573468]
[1728842656880,0.8323,2450.0,2449.8,5.59573468]
[1728842657086,0.8323,2450.0,2449.8,1.51377468]
[1728842657388,0.8323,2450.0,2449.7,5.59588468]
[1728842657923,0.8323,2450.0,2449.7,1.51377468]
[1728842658077,0.8323,2450.0,2449.6,5.59596468]
[1728842658987,1.731824,2450.0,2449.6,4.08219]
[1728842660422,5.813454,2450.0,2449.6,4.08219]
[1728842660984,5.813454,2450.0,2449.6,5.59596468]
[1728842661228,0.8323,2450.0,2449.7,5.59589468]
[1728842661383,0.8323,2450.0,2449.8,5.59571468]
[1728842661583,0.8323,2450.0,2449.8,4.08194]
[1728842661985,0.8323,2450.0,2449.7,4.08212]
[1728842662212,0.8323,2450.0,2449.6,6.36026468]
[1728842662432,0.8323,2450.0,2449.6,5.59596468]
[1728842663028,0.8323,2450.0,2449.6,9.67816468]
[1728842664091,0.8323,2450.0,2449.6,5.59596468]
[1728842664513,0.8323,2450.0,2449.6,9.67817468]
[1728842664845,0.8323,2450.0,2449.6,4.08219]
[1728842665052,0.8323,2450.0,2449.6,5.59596468]
[1728842666034,4.91399,2450.0,2449.6,5.59596468]
[1728842666531,0.8323,2450.0,2449.6,5.59596468]
[1728842666740,4.91395,2450.0,2449.6,1.51377468]
[1728842668309,4.08214,2449.7,2449.4,0.7643]
[1728842668512,0.7807,2449.6,2449.3,4.08271]
[1728842668734,0.7807,2449.6,2449.4,4.08261]
[1728842668922,0.7807,2449.6,2449.3,1.51377468]
[1728842669414,5.349396,2449.6,2449.0,4.08319]
[1728842669608,4.08248,2449.5,2449.1,4.08305]
[1728842670057,4.08248,2449.5,2449.1,5.59682468]
[1728842670214,1.266966,2449.6,2449.1,5.59682468]
[1728842670419,5.349276,2449.6,2449.1,5.59682468]
[1728842671450,4.08248,2449.5,2449.1,5.59682468]
[1728842671616,4.08248,2449.5,2449.1,1.51377468]
[1728842672349,5.0256516,2449.5,2449.1,1.51377468]
[1728842672555,0.7807,2449.3,2449.0,1.51377468]
[1728842672854,0.7807,2449.3,2449.0,5.59704468]
[1728842673413,0.85174979,2449.3,2449.0,5.59704468]
[1728842675154,0.85174979,2449.3,2449.2,5.59673468]
[1728842675155,0.07104979,2449.3,2449.2,5.59673468]
[1728842675313,0.07104979,2449.3,2449.2,6.36103468]
[1728842676250,0.07104979,2449.3,2449.0,5.59705468]
[1728842676554,0.07104979,2449.3,2449.0,4.08328]
[1728842677359,0.07104979,2449.3,2448.8,5.59728468]
[1728842677654,0.07104979,2449.3,2448.9,4.08344]
[1728842677957,0.07104979,2449.3,2448.9,5.59721468]
[1728842678657,0.07104979,2449.3,2449.0,4.08327]
[1728842679159,0.07104979,2449.3,2448.9,5.59721468]
[1728842680032,0.07104979,2449.3,2449.0,1.51377468]
[1728842681872,0.07104979,2449.3,2449.0,5.59704468]
[1728842682077,0.07104979,2449.3,2449.1,1.51377468]
[1728842682372,0.07104979,2449.3,2449.1,5.59687468]
[1728842683479,0.07104979,2449.3,2449.1,1.51377468]
[1728842683691,0.07104979,2449.3,2449.1,5.59688468]
[1728842685851,0.07104979,2449.3,2449.1,4.08311]
[1728842686892,0.07104979,2449.3,2449.1,5.59688468]
[1728842687383,0.07104979,2449.3,2449.1,4.08311]
[1728842690887,0.07104979,2449.3,2448.9,5.59711468]
[1728842690888,0.7566,2449.2,2448.9,5.59711468]
[1728842691196,0.7566,2449.2,2449.0,1.51377468]
[1728842691580,0.7566,2449.2,2448.9,9.68048468]
[1728842692395,0.7566,2449.2,2448.9,4.08334]
[1728842692572,0.7566,2449.2,2448.8,1.51377468]
[1728842692751,0.7566,2449.2,2448.8,5.59740468]
[1728842696411,0.7566,2449.2,2448.9,1.51377468]
[1728842696623,0.7566,2449.2,2448.9,5.59720468]
[1728842698719,0.7566,2449.2,2449.0,1.51377468]
[1728842698923,0.7566,2449.2,2448.9,5.59720468]
[1728842700610,0.7566,2449.2,2448.8,5.59740468]
[1728842701212,0.7566,2449.2,2448.9,1.51377468]
[1728842701525,0.7566,2449.2,2448.9,5.59722468]
[1728842703917,0.07104979,2449.3,2449.1,5.59687468]
[1728842704288,0.07104979,2449.3,2449.1,4.0831]
[1728842704626,0.07104979,2449.3,2449.0,6.42915468]
[1728842704796,0.07104979,2449.3,2449.0,4.91538]
[1728842704995,0.07104979,2449.3,2449.0,4.08318]
[1728842706522,0.07104979,2449.3,2449.0,8.16636]
[1728842706842,0.07104979,2449.3,2449.0,4.08318]
[1728842707916,0.07104979,2449.3,2448.8,4.91568]
[1728842707917,0.07104979,2449.3,2448.8,0.8322]
[1728842708089,0.8108,2449.2,2448.8,4.08352]
[1728842708417,0.8108,2449.2,2448.8,4.3896742]
[1728842709128,0.8108,2449.2,2448.8,4.38967896]
[1728842709288,0.8108,2449.2,2448.8,0.30615896]
[1728842709491,0.8108,2449.0,2448.6,4.08393]
[1728842709801,0.8108,2449.0,2448.6,6.66108371]
[1728842710000,4.08347,2448.9,2448.6,0.30625041]
[1728842710201,4.15453587,2448.9,2448.5,1.82002509]
[1728842710499,4.15453587,2448.9,2448.5,1.51377468]
[1728842710697,4.15453587,2448.9,2448.4,6.43016468]
[1728842710906,4.15453587,2448.9,2448.5,0.3062764]
[1728842711221,0.54547359,2448.8,2448.4,7.49393007]
[1728842711520,0.54547359,2448.8,2448.5,1.51377468]
[1728842711886,0.07106587,2448.9,2448.5,1.8200624]
[1728842712084,0.07106587,2448.9,2448.5,1.51377468]
[1728842712528,0.07106587,2448.9,2448.4,6.43016468]
[1728842712694,0.07106587,2448.9,2448.4,11.57817372]
[1728842713034,0.8108,2448.8,2448.3,4.08445]
[1728842713254,1.09930405,2448.8,2448.3,6.66209872]
[1728842713449,1.09930405,2448.8,2448.3,4.08445]
[1728842713660,1.09930405,2448.8,2448.3,5.59822468]
[1728842713825,1.09930405,2448.8,2448.4,5.59806468]
[1728842714450,0.07106587,2448.9,2448.7,1.51377468]
[1728842714757,0.07106587,2448.9,2448.7,4.08377]
[1728842715313,0.07106587,2448.9,2448.7,5.59754468]
[1728842715518,0.07106587,2448.9,2448.7,4.08377]
[1728842715720,0.07106587,2448.9,2448.7,5.59754468]
[1728842715947,0.07106587,2448.9,2448.8,4.08363]
[1728842716462,0.07106587,2448.9,2448.8,5.59740468]
[1728842716614,0.07106587,2448.9,2448.8,5.67906938]
[1728842716817,0.8142,2449.3,2449.1,4.08298]
[1728842717048,0.88524887,2449.3,2449.1,4.08298]
[1728842717525,0.88524887,2449.3,2449.2,4.08296]
[1728842720161,0.07104887,2449.3,2449.2,5.59673468]
[1728842720329,0.07104887,2449.3,2449.2,5.67838665]
[1728842720519,1.65528302,2449.7,2449.6,4.08229]
[1728842720732,1.65528302,2449.9,2449.6,5.59606468]
[1728842721075,1.10589075,2449.9,2449.8,4.08196]
[1728842721222,1.10589075,2449.9,2449.7,4.08212]
[1728842721427,1.10589075,2449.9,2449.7,4.082]
[1728842721628,1.10589075,2449.9,2449.8,4.08196]
[1728842723045,0.8142,2449.9,2449.8,4.08196]
[1728842723357,0.8142,2449.9,2449.6,4.08229]
[1728842723563,0.8142,2449.9,2449.7,4.08197]
[1728842724447,0.8142,2449.9,2449.8,4.08196]
[1728842727688,0.90363933,2450.1,2449.9,4.08178]
[1728842727964,2.14233125,2450.1,2449.9,4.08178]
[1728842728411,3.65610593,2450.1,2449.8,4.08196]
[1728842728680,0.8326,2450.0,2449.6,4.08216]
[1728842728885,0.8326,2449.8,2449.6,4.08216]
[1728842730595,0.8326,2449.8,2449.4,8.16503]
[1728842730875,0.8326,2449.8,2449.5,4.08235]
[1728842731179,0.8326,2449.8,2449.6,4.08229]
[1728842732240,0.8326,2449.8,2449.3,1.51377468]
[1728842732579,2.64333329,2449.8,2449.2,0.825]
[1728842732761,0.8326,2449.7,2449.3,4.08269]
[1728842734079,0.8326,2449.7,2449.4,4.08254]
[1728842735442,0.8326,2449.6,2449.2,4.08288]
[1728842735661,1.35375386,2449.6,2449.2,4.08288]
[1728842736063,1.35375386,2449.6,2449.3,4.08277]
[1728842736280,1.35375386,2449.6,2449.2,4.08288]
[1728842736466,1.35375386,2449.6,2449.0,1.51377468]
[1728842736467,0.8326,2449.5,2449.0,4.08313]
[1728842736671,1.52756685,2449.5,2449.0,4.08313]
[1728842736969,1.51377468,2449.4,2449.0,4.08313]
[1728842737145,0.7797,2449.3,2449.0,8.16634]
[1728842737348,0.7797,2449.3,2449.0,4.08313]
[1728842737589,0.63761747,2449.2,2449.0,4.08313]
[1728842739168,0.63761747,2449.2,2448.8,8.16701]
[1728842739486,0.63761747,2449.2,2448.9,4.08344]
[1728842739691,0.7797,2449.1,2448.8,4.08362]
[1728842739845,0.7797,2449.1,2448.6,4.86966]
[1728842739846,0.7797,2449.1,2448.7,4.08378]
[1728842740042,1.48109022,2449.1,2448.7,4.08378]
[1728842740646,1.48109022,2449.1,2448.8,5.59728468]
[1728842740852,0.7797,2449.1,2448.8,4.08351]
[1728842741264,0.7797,2449.1,2448.6,1.51377468]
[1728842741559,0.7797,2449.1,2448.7,4.08371]
[1728842742365,0.7797,2449.1,2448.7,8.16742]
[1728842742682,0.7797,2449.1,2448.8,4.08354]
[1728842742849,0.7797,2449.1,2448.8,1.51377468]
[1728842743190,0.07105722,2449.2,2449.1,4.08313]
[1728842747203,0.07105722,2449.2,2449.0,4.08329]
[1728842747695,0.07105722,2449.2,2448.8,5.59729468]
[1728842747696,0.7797,2449.1,2448.9,4.08345]
[1728842750798,0.7797,2449.1,2448.9,8.1668]
[1728842750958,0.7797,2449.1,2448.9,8.16673]
[1728842752565,0.7797,2449.1,2448.9,4.08335]
[1728842756098,0.7797,2449.1,2448.7,4.08369]
[1728842756272,5.53121551,2449.1,2448.7,4.08369]
[1728842757778,5.53121551,2449.1,2448.7,8.1674]
[1728842757983,1.44808551,2449.1,2448.7,8.1674]
[1728842758562,1.44808551,2449.1,2448.7,5.59746468]
[1728842758758,0.07105722,2449.2,2449.0,4.08327]
[1728842761061,0.07105722,2449.2,2449.1,5.59690468]
[1728842761400,0.07105722,2449.2,2449.1,4.08313]
[1728842761766,0.07105722,2449.2,2449.0,4.08327]
[1728842761995,0.07105722,2449.2,2449.1,4.08313]
[1728842762703,0.07105722,2449.2,2449.0,4.08327]
[1728842763811,0.07105722,2449.2,2449.0,5.59699468]
[1728842764108,0.07105722,2449.2,2449.1,4.08313]
[1728842764422,0.07105722,2449.2,2449.1,6.37340468]
[1728842764601,1.19464575,2449.6,2449.1,6.37340468]
[1728842764815,1.19464575,2449.6,2449.2,4.08281]
[1728842764991,1.265691,2449.6,2449.2,4.08281]
[1728842765565,1.265691,2449.6,2449.3,4.08278]
[1728842765777,3.31432932,2449.6,2449.3,4.08278]
[1728842767279,1.265691,2449.6,2449.3,4.08278]
[1728842769194,1.265691,2449.6,2449.3,4.08269]
[1728842772018,0.07104525,2449.6,2449.5,5.59623468]
[1728842772322,0.84108302,2449.9,2449.5,6.37273468]
[1728842772497,1.60888302,2450.0,2449.6,4.08222]
[1728842773926,1.60888302,2450.0,2449.6,5.59599468]
[1728842774785,1.60888302,2450.0,2449.6,4.08222]
[1728842775226,1.60888302,2450.0,2449.6,5.59599468]
[1728842775733,1.60888302,2450.0,2449.6,4.08222]
[1728842775897,1.60888302,2450.0,2449.8,4.08194]
[1728842776200,0.84108302,2450.0,2449.8,4.08194]
[1728842776621,1.33893519,2450.1,2449.8,4.08194]
[1728842776820,1.33893519,2450.1,2449.7,4.08213]
[1728842777185,1.33893519,2450.1,2449.8,4.08195]
[1728842777430,1.33893519,2450.1,2449.7,4.08212]
[1728842777733,1.33893519,2450.1,2449.7,4.08203]
[1728842778289,5.42048519,2450.1,2449.5,2.29027468]
[1728842778493,5.42048519,2450.1,2449.4,4.0826]
[1728842778494,0.8317,2449.8,2449.4,4.08254]
[1728842778795,0.8317,2449.8,2449.5,0.1278512]
[1728842778995,0.8317,2449.8,2449.4,4.08254]
[1728842779238,0.8317,2449.8,2449.5,5.72407692]
[1728842779403,4.08164,2450.0,2449.5,5.59622468]
[1728842780040,6.25210519,2450.1,2449.6,4.08228]
[1728842780593,7.76587987,2450.1,2449.6,4.08228]
[1728842780824,7.76587987,2450.1,2449.6,8.1645]
[1728842781493,7.76587987,2450.1,2449.6,4.08222]
[1728842782040,5.59555468,2450.0,2449.5,4.08246]
[1728842783027,4.08189,2449.9,2449.4,9.67878468]
[1728842783212,4.08189,2449.9,2449.4,4.0825]
[1728842783213,0.8317,2449.8,2449.4,4.0825]
[1728842784239,0.8317,2449.8,2449.4,8.16504]
[1728842784401,0.8317,2449.8,2449.5,4.08244]
[1728842785838,0.8317,2450.0,2449.6,4.86518]
[1728842786046,0.8317,2450.0,2449.7,4.08209]
[1728842786338,0.8317,2450.0,2449.8,4.08194]
[1728842789437,0.8317,2450.0,2449.6,4.8651]
[1728842789663,0.8317,2450.0,2449.7,4.08203]
[1728842790333,0.8317,2450.0,2449.8,4.08194]
[1728842790535,0.49785217,2450.1,2449.8,4.08194]
[1728842793370,0.49785217,2450.1,2449.7,8.16408]
[1728842793534,0.49785217,2450.1,2449.8,4.08189]
[1728842795381,4.57937217,2450.1,2449.6,2.29667468]
[1728842795539,0.8317,2449.9,2449.5,4.08232]
[1728842796043,0.8317,2449.9,2449.5,8.1647]
[1728842796380,0.90273955,2449.9,2449.5,8.1647]
[1728842796679,0.90273955,2449.9,2449.5,8.16471]
[1728842797477,0.90273955,2449.9,2449.5,4.08232]
[1728842797671,0.90273955,2449.9,2449.5,8.1647]
[1728842797843,0.90273955,2449.9,2449.5,4.08232]
[1728842798466,0.90273955,2449.9,2449.6,4.08227]
[1728842800880,0.90273955,2449.9,2449.5,4.08232]
[1728842801243,0.90273955,2449.9,2449.6,4.08224]
[1728842807296,0.90273955,2449.9,2449.7,0.12784123]
[1728842807451,0.90273955,2449.9,2449.6,4.08224]
[1728842807650,0.90273955,2449.9,2449.7,0.12784108]
[1728842807850,0.90273955,2449.9,2449.6,4.08224]
[1728842808084,0.90273955,2449.9,2449.7,0.1278408]
[1728842808384,0.90273955,2449.9,2449.6,4.08224]
[1728842808595,0.90273955,2449.9,2449.7,0.12784091]
[1728842808761,0.90273955,2449.9,2449.6,4.08224]
[1728842808960,0.90273955,2449.9,2449.7,0.12784101]
[1728842809160,0.90273955,2449.9,2449.6,4.08224]
[1728842809386,0.90273955,2449.9,2449.7,0.12784113]
[1728842809690,0.90273955,2449.9,2449.6,4.08224]
[1728842809891,0.90273955,2449.9,2449.7,0.12783921]
[1728842810088,0.90273955,2449.9,2449.6,4.08224]
[1728842810388,0.90273955,2449.9,2449.7,0.1278406]
[1728842810590,0.90273955,2449.9,2449.8,0.1278406]
[1728842811555,0.90273955,2449.9,2449.7,4.08212]
[1728842811997,0.90273955,2449.9,2449.8,0.1278402]
[1728842814381,0.90273955,2449.9,2449.7,4.08212]
[1728842814563,1.74382257,2449.9,2449.7,4.08212]
[1728842817296,1.74382257,2449.9,2449.8,0.12784019]
[1728842817676,2.16436408,2449.9,2449.8,0.12784019]
[1728842818267,2.16436408,2449.9,2449.8,0.33238757]
[1728842818671,2.16436408,2449.9,2449.8,0.12784019]
[1728842818897,3.40801171,2449.9,2449.8,0.12784019]
[1728842819099,2.16436408,2449.9,2449.8,0.12784019]
[1728842821109,2.16436408,2449.9,2449.8,0.33238632]
[1728842822417,2.16436408,2449.9,2449.8,0.12784019]
[1728842822979,2.16436408,2449.9,2449.8,0.33238911]
[1728842823209,2.16436408,2449.9,2449.8,0.33238753]
[1728842824229,2.16436408,2449.9,2449.8,0.12784236]
[1728842824375,2.16436408,2449.9,2449.6,4.08227]
[1728842824723,0.85181327,2449.8,2449.7,0.33239336]
[1728842825088,0.85181327,2449.8,2449.7,0.33239302]
[1728842827307,0.85181327,2449.8,2449.7,4.41452302]
[1728842827941,0.85181327,2449.8,2449.7,4.41452256]
[1728842828799,0.85181327,2449.8,2449.7,0.33239256]
[1728842830132,0.85181327,2449.8,2449.7,4.41452256]
[1728842831190,0.85181327,2449.8,2449.7,0.33239256]
[1728842831532,2.16436408,2449.9,2449.7,0.33239256]
[1728842831835,2.16436408,2449.9,2449.8,0.12784329]
[1728842831836,3.40801671,2449.9,2449.8,0.12784329]
[1728842832059,3.40801671,2449.9,2449.8,0.33239661]
[1728842832339,3.40801671,2449.9,2449.8,0.12784329]
[1728842832511,7.48980671,2449.9,2449.8,0.33239485]
[1728842832914,7.48980671,2449.9,2449.8,0.12784329]
[1728842833237,7.91034822,2449.9,2449.8,0.12784329]
[1728842835463,7.91034822,2449.9,2449.8,0.12785007]
[1728842835667,3.82855822,2449.9,2449.8,0.12785007]
[1728842835866,1.75320559,2449.9,2449.8,0.12785007]
[1728842836155,1.75320559,2449.9,2449.8,0.12784879]
[1728842836662,0.07103955,2449.9,2449.8,0.12784879]
[1728842837426,1.75320559,2449.9,2449.8,0.12784879]
[1728842838363,1.34731275,2449.9,2449.8,0.12784879]
[1728842839063,1.34731275,2449.9,2449.6,8.91573]
[1728842839276,0.07103955,2449.9,2449.8,4.08196]
[1728842839440,0.85090513,2449.9,2449.8,4.414352]
[1728842839644,0.850932,2449.9,2449.8,4.414352]
[1728842842776,0.850932,2449.9,2449.8,4.08196]
[1728842843068,0.850932,2449.9,2449.8,4.41434637]
[1728842843276,0.850932,2449.9,2449.8,0.33238637]
[1728842843738,2.0385732,2450.0,2449.8,0.33238637]
[1728842843941,2.0385732,2450.0,2449.9,0.12784091]
[1728842844636,5.52757921,2450.0,2449.9,0.12784091]
[1728842844778,7.20974525,2450.0,2449.9,0.12784091]
[1728842846488,7.20974525,2450.0,2449.9,0.12784689]
[1728842846668,7.20974525,2450.0,2449.5,8.16471]
[1728842846875,0.85056609,2449.8,2449.6,0.58809518]
[1728842847183,0.85056609,2449.8,2449.7,0.33240147]
[1728842850190,0.85056609,2449.8,2449.7,0.3324009]
[1728842851094,0.85056609,2449.9,2449.7,5.1772309]
[1728842851293,0.85056609,2449.9,2449.8,0.3324009]
[1728842853366,0.85056609,2449.9,2449.8,0.33238635]
[1728842855299,0.85056609,2449.9,2449.8,4.41434635]
[1728842855467,0.85056609,2450.0,2449.9,4.84449]
[1728842855675,0.85056609,2450.2,2450.1,0.7627]
[1728842855871,0.85056609,2450.3,2450.2,4.08129]
[1728842856184,1.27584914,2450.4,2450.2,4.08129]
[1728842856185,0.85056609,2450.4,2450.3,4.08113]
[1728842856488,0.85056609,2450.5,2450.4,4.08096]
[1728842856700,0.85056609,2450.5,2450.4,6.51657558]
[1728842857001,0.07096455,2450.7,2450.6,4.87463]
[1728842857158,0.85056609,2450.9,2450.7,4.08046]
[1728842857367,0.85056609,2451.0,2450.7,4.08046]
[1728842858592,1.34678898,2451.1,2450.7,4.08046]
[1728842858593,0.92150593,2451.1,2450.7,4.08046]
[1728842860361,0.92150593,2451.1,2450.6,0.794]
[1728842860362,1.58471452,2451.1,2450.6,0.794]
[1728842860688,0.763,2451.0,2450.7,4.08045]
[1728842861496,0.763,2451.0,2450.6,4.08062]
[1728842862077,0.763,2451.0,2450.7,4.08044]
[1728842862275,0.763,2451.0,2450.7,3.95544]
[1728842864638,0.07093984,2451.1,2450.8,4.8742]
[1728842865527,0.07093984,2451.1,2450.8,0.794]
[1728842866387,0.07093984,2451.1,2450.7,3.95544]
[1728842868495,0.07093984,2451.1,2450.7,8.03582]
[1728842869025,0.07093984,2451.1,2450.7,3.95544]
[1728842869528,0.07093984,2451.1,2450.7,8.03581]
[1728842870631,0.07093984,2451.1,2450.8,4.08029]
[1728842871358,0.07093984,2451.1,2450.7,3.95544]
[1728842871500,0.07093984,2451.1,2450.7,8.03581]
[1728842873437,0.07093984,2451.1,2450.7,3.95544]
[1728842873611,1.12162129,2451.1,2450.7,3.95544]
[1728842876043,1.12162129,2451.1,2450.8,4.08029]
[1728842876252,0.07093984,2451.1,2450.8,4.08029]
[1728842877641,0.07093984,2451.1,2450.7,8.03583]
[1728842880306,0.07093984,2451.1,2450.6,2.30777468]
[1728842880307,0.07093984,2451.1,2450.6,0.794]
[1728842880504,4.08003,2451.0,2450.6,4.87462]
[1728842881659,4.08026,2450.9,2450.6,0.794]
[1728842881822,0.96740047,2450.8,2450.6,0.794]
[1728842882023,5.04773047,2450.8,2450.6,0.794]
[1728842882224,4.08046,2450.7,2450.6,0.794]
[1728842882426,5.59423468,2450.7,2450.6,0.794]
[1728842882943,10.10800936,2450.7,2450.6,0.794]
[1728842883115,10.20195994,2450.7,2450.6,0.794]
[1728842884110,8.68818526,2450.7,2450.6,0.794]
[1728842884533,10.20195994,2450.7,2450.6,0.794]
[1728842888336,11.71573462,2450.7,2450.6,0.794]
[1728842888549,11.05252603,2450.7,2450.6,0.794]
[1728842889346,12.56630071,2450.7,2450.6,0.794]
[1728842889562,11.05252603,2450.7,2450.6,0.794]
[1728842889850,12.56630071,2450.7,2450.6,0.794]
[1728842890655,11.05252603,2450.7,2450.6,0.794]
[1728842891013,12.56630071,2450.7,2450.6,0.794]
[1728842891423,12.56307934,2450.7,2450.6,0.794]
[1728842891622,11.04930466,2450.7,2450.6,0.794]
[1728842891846,4.08117,2450.3,2449.8,5.59571468]
[1728842892228,8.16238,2450.3,2449.8,5.59571468]
[1728842892423,4.08117,2450.3,2449.8,5.59571468]
[1728842893257,4.08117,2450.3,2449.8,4.08194]
[1728842893917,4.08135,2450.2,2449.6,9.67810468]
[1728842894118,5.59512468,2450.2,2449.7,4.08213]
[1728842894318,4.08135,2450.2,2449.7,4.08213]
[1728842895145,4.08135,2450.2,2449.6,5.59593468]
[1728842895146,1.51377468,2450.1,2449.6,4.08216]